bitfinex-derivatives/quotes_ETHF0:USTF0_20250830
["timestamp","ask_amount","ask_price","bid_price","bid_amount"]
[1756563614766,0.485,4346.5,4345.9,0.235]
[1756563616766,0.485,4346.5,4345.8,0.2857]
[1756563616974,0.1902,4345.2,4345.1,5.308]
[1756563617267,0.485,4345.2,4345.1,0.7176]
[1756563617473,0.485,4345.2,4345.1,41.5176]
[1756563617773,0.1902,4345.2,4345.1,0.235]
[1756563618166,0.1902,4345.2,4344.6,3.2078]
[1756563618468,3.2078,4345.6,4344.4,33.4317]
[1756563618469,0.485,4344.5,4344.4,33.146]
[1756563618676,0.485,4344.5,4344.3,0.235]
[1756563619174,0.1902,4344.3,4344.2,0.235]
[1756563619372,0.485,4344.3,4344.2,0.235]
[1756563619774,0.1902,4343.6,4343.5,3.4047]
[1756563619969,0.485,4343.6,4343.5,3.6397]
[1756563620968,0.485,4343.6,4343.5,3.9254]
[1756563622367,0.485,4343.6,4343.5,3.2078]
[1756563622574,0.1902,4343.6,4343.5,0.235]
[1756563622777,0.485,4343.6,4343.0,36.6395]
[1756563622977,0.1902,4343.2,4343.1,0.235]
[1756563623276,0.485,4343.2,4343.1,0.235]
[1756563623478,0.2948,4343.1,4343.0,33.146]
[1756563623671,3.2078,4343.6,4342.1,0.2857]
[1756563623865,3.2078,4343.6,4342.2,0.235]
[1756563623866,0.2948,4343.5,4342.2,0.235]
[1756563624077,0.2948,4343.5,4342.3,0.2857]
[1756563624678,0.2948,4343.5,4342.6,0.2857]
[1756563624878,0.2948,4343.5,4342.8,0.2857]
[1756563625078,0.485,4342.9,4342.8,0.4826]
[1756563625476,0.1902,4342.9,4342.8,0.4826]
[1756563625781,0.2948,4343.5,4342.9,0.2857]
[1756563627676,0.485,4343.5,4343.4,0.4826]
[1756563627884,0.485,4344.0,4343.9,0.4826]
[1756563628180,0.485,4344.0,4343.9,0.1969]
[1756563628376,0.485,4344.0,4343.4,0.235]
[1756563628682,0.485,4343.9,4343.8,0.1969]
[1756563628981,0.485,4343.9,4343.5,0.2857]
[1756563629177,0.485,4343.9,4342.9,0.2857]
[1756563629482,0.485,4343.9,4343.1,0.2857]
[1756563629681,3.2078,4344.1,4343.1,0.5207]
[1756563629882,0.485,4343.2,4343.1,0.7176]
[1756563631082,3.5026,4343.6,4343.1,0.7176]
[1756563631375,0.485,4343.5,4343.4,0.4826]
[1756563631576,0.485,4343.5,4343.1,0.235]
[1756563631577,0.1902,4343.5,4343.1,0.5207]
[1756563631784,0.485,4343.2,4342.7,3.4935]
[1756563631972,0.485,4343.2,4342.8,0.5207]
[1756563632178,0.1902,4342.9,4342.8,0.4319]
[1756563632382,0.485,4342.9,4342.8,0.7176]
[1756563632784,3.2078,4343.6,4342.8,0.7176]
[1756563633085,0.1902,4343.0,4342.9,0.4826]
[1756563633282,0.485,4343.0,4342.9,0.4826]
[1756563633684,0.1902,4343.0,4342.9,0.4826]
[1756563633983,3.2078,4343.6,4342.8,0.235]
[1756563634187,0.2948,4343.5,4342.9,0.2857]
[1756563634778,0.485,4343.5,4343.4,0.1969]
[1756563635681,0.485,4343.5,4343.4,0.4826]
[1756563635881,0.485,4344.0,4343.9,0.1969]
[1756563636083,3.2078,4344.1,4344.0,0.2857]
[1756563636388,3.2078,4344.1,4344.0,41.2826]
[1756563637682,0.115,4344.3,4344.0,41.2826]
[1756563637883,0.115,4344.3,4344.2,0.1917]
[1756563638088,0.115,4344.3,4344.2,0.4762]
[1756563638587,3.4111,4344.8,4344.7,0.4038]
[1756563638887,0.3024,4344.7,4344.2,44.2199]
[1756563639187,0.5057,4344.4,4344.3,0.6388]
[1756563639585,3.2078,4345.4,4344.3,0.6388]
[1756563639586,3.2078,4345.4,4344.3,0.4267]
[1756563639787,0.5057,4345.3,4345.2,0.4038]
[1756563640090,0.5057,4345.3,4345.2,0.6388]
[1756563641084,0.5057,4345.8,4345.7,0.4038]
[1756563641285,3.2078,4346.6,4345.7,3.8466]
[1756563641487,0.3024,4346.5,4345.7,3.8466]
[1756563641993,0.3024,4346.5,4345.8,0.2121]
[1756563642585,0.5057,4346.5,4346.4,0.1917]
[1756563642780,0.5057,4346.5,4346.4,0.4038]
[1756563643189,0.5057,4346.5,4346.2,0.235]
[1756563643485,0.5057,4346.3,4346.2,0.6388]
[1756563644191,0.3024,4346.5,4346.4,0.4038]
[1756563644601,0.5057,4346.5,4346.4,0.4038]
[1756563644793,0.2033,4346.5,4346.4,0.4038]
[1756563645198,0.5057,4346.5,4346.4,0.4038]
[1756563647102,0.3024,4347.2,4346.6,0.2121]
[1756563647304,0.5057,4347.2,4347.1,0.1917]
[1756563648596,0.5057,4347.2,4347.1,0.4038]
[1756563649592,0.3024,4346.8,4346.2,3.2078]
[1756563649902,0.5057,4346.2,4346.1,0.4038]
[1756563650100,0.5057,4346.2,4346.1,41.4388]
[1756563651002,3.2078,4347.3,4346.1,41.2267]
[1756563651301,0.3024,4347.2,4346.2,0.2121]
[1756563653097,0.5057,4347.2,4347.1,0.1917]
[1756563653500,0.5057,4347.2,4347.1,0.4038]
[1756563653998,0.5057,4347.2,4347.1,0.1917]
[1756563654204,0.5057,4347.2,4347.0,0.235]
[1756563654406,3.2078,4347.3,4347.0,0.4267]
[1756563654407,0.5057,4347.1,4347.0,0.4267]
[1756563654595,0.5057,4347.1,4347.0,0.235]
[1756563659997,0.5057,4347.1,4346.8,0.235]
[1756563660905,0.2033,4347.1,4346.8,0.4471]
[1756563661108,0.5057,4346.9,4346.8,0.6388]
[1756563661506,0.5057,4346.9,4346.8,0.235]
[1756563662512,0.5057,4346.9,4346.8,0.4267]
[1756563663407,0.5057,4346.9,4346.8,0.6388]
[1756563664609,0.5057,4346.9,4346.8,0.235]
[1756563665509,0.5057,4346.9,4346.4,0.2121]
[1756563665510,0.3024,4346.0,4345.7,0.2121]
[1756563665707,0.2033,4345.9,4345.8,0.4257]
[1756563665907,0.5057,4345.9,4345.8,0.4257]
[1756563666108,0.5057,4345.9,4345.8,41.4378]
[1756563666306,0.5057,4345.9,4345.8,40.9917]
[1756563666508,0.5057,4345.1,4345.0,0.4038]
[1756563666808,0.5057,4345.1,4345.0,0.235]
[1756563667208,0.5057,4345.1,4345.0,0.4267]
[1756563667407,0.2987,4346.0,4345.1,0.2109]
[1756563667608,3.5065,4346.3,4346.2,0.1918]
[1756563667813,3.2078,4346.3,4346.2,0.6377]
[1756563668311,3.7055,4346.3,4346.2,0.6377]
[1756563668506,3.4068,4346.3,4346.2,0.6377]
[1756563668813,0.2987,4347.3,4346.3,0.2109]
[1756563669109,0.199,4346.4,4346.3,0.4027]
[1756563669414,0.4977,4346.4,4346.3,41.035]
[1756563669809,0.4977,4346.4,4346.3,40.8]
[1756563670013,0.4977,4346.4,4346.3,41.035]
[1756563670712,0.4977,4346.4,4346.3,0.235]
[1756563674114,0.4977,4346.4,4346.1,0.235]
[1756563674309,0.4977,4345.0,4344.9,2.45633366]
[1756563674616,0.4977,4345.0,4344.9,0.6377]
[1756563675019,0.4977,4345.0,4344.9,0.4027]
[1756563675220,0.4977,4345.0,4344.9,0.6377]
[1756563676321,0.4977,4345.0,4344.9,41.4377]
[1756563677321,0.2987,4346.1,4345.0,0.2109]
[1756563680818,0.4977,4346.5,4346.4,0.1918]
[1756563681018,0.4977,4346.5,4346.4,0.6385]
[1756563683122,0.2987,4347.1,4347.0,0.4035]
[1756563683314,0.2987,4347.1,4347.0,0.6385]
[1756563683626,0.4977,4347.1,4347.0,0.6385]
[1756563684119,3.2078,4347.3,4347.0,0.6385]
[1756563684320,0.4977,4347.2,4347.0,0.235]
[1756563684515,0.4977,4347.2,4347.1,0.4035]
[1756563685218,0.2987,4347.2,4347.1,0.4035]
[1756563685411,3.2078,4347.3,4347.2,0.4035]
[1756563686526,3.7055,4347.3,4347.2,0.4035]
[1756563687021,3.2078,4347.3,4347.2,0.4035]
[1756563687231,3.7055,4347.3,4347.2,0.4035]
[1756563688121,3.7055,4347.3,4347.2,0.4268]
[1756563688825,3.7055,4347.3,4347.2,0.6385]
[1756563691728,0.4977,4347.3,4347.2,0.6385]
[1756563696929,0.4977,4347.3,4347.2,41.2268]
[1756563697127,0.4977,4347.3,4347.2,40.8]
[1756563697332,0.4977,4347.3,4347.2,41.034]
[1756563697921,0.1921,4346.9,4346.8,3.2078]
[1756563698130,0.4888,4346.9,4346.8,3.4418]
[1756563698329,0.4888,4346.9,4346.8,44.2418]
[1756563698831,0.4888,4346.9,4346.8,44.4527]
[1756563703028,0.2967,4347.7,4346.8,44.2418]
[1756563703241,0.52673,4347.7,4346.9,0.2109]
[1756563703534,0.52673,4347.7,4347.1,0.2109]
[1756563703733,0.1921,4347.3,4347.2,0.6323]
[1756563704028,0.4888,4347.3,4347.2,0.6323]
[1756563704936,0.2967,4347.7,4347.6,0.1874]
[1756563705228,0.4888,4347.7,4347.6,0.6323]
[1756563706332,3.2078,4347.8,4347.7,0.3983]
[1756563706534,3.5045,4347.8,4347.7,0.3983]
[1756563706722,3.6966,4347.8,4347.7,0.3983]
[1756563708138,3.2078,4347.8,4347.7,0.3983]
[1756563709030,0.1921,4349.0,4348.9,0.1874]
[1756563709236,0.4888,4349.0,4348.9,0.216]
[1756563710133,0.4888,4349.0,4348.9,0.4034]
[1756563710331,0.4888,4349.0,4348.9,0.6143]
[1756563712431,0.2967,4349.0,4348.9,0.6143]
[1756563712831,0.4888,4349.0,4348.9,0.1874]
[1756563713034,0.4888,4349.0,4348.4,0.2109]
[1756563713235,0.4888,4349.0,4348.9,0.234]
[1756563714739,0.4888,4349.0,4348.9,0.6323]
[1756563715748,3.2078,4349.1,4349.0,0.2109]
[1756563715937,0.2967,4349.3,4349.0,0.3983]
[1756563716235,0.4888,4349.1,4349.0,0.3983]
[1756563717435,3.5045,4349.6,4349.5,0.3983]
[1756563717631,3.5045,4349.6,4349.5,0.6323]
[1756563717832,3.6966,4349.6,4349.5,0.6323]
[1756563718035,3.6966,4349.6,4349.1,0.2109]
[1756563718240,0.1921,4349.3,4349.2,0.6323]
[1756563718434,0.4888,4349.3,4349.2,0.6323]
[1756563718634,0.4888,4349.3,4349.2,41.4323]
[1756563719434,0.2967,4349.5,4349.3,0.2109]
[1756563719638,0.4888,4349.5,4349.4,0.3983]
[1756563720239,0.41299232,4351.6,4349.2,41.034]
[1756563720240,0.5888,4350.2,4350.1,0.1874]
[1756563720542,0.5888,4350.2,4349.8,0.2109]
[1756563720740,0.4888,4349.4,4349.3,0.3983]
[1756563720939,0.4888,4349.4,4349.3,0.6323]
[1756563721747,0.2967,4350.1,4349.4,0.2109]
[1756563721949,0.1921,4349.8,4349.7,3.3952]
[1756563722138,0.4888,4349.8,4349.7,3.8401]
[1756563722442,0.4888,4349.8,4349.7,0.6323]
[1756563722638,0.4888,4349.8,4349.4,0.2109]
[1756563722841,0.4888,4349.3,4349.2,40.8]
[1756563723042,0.2967,4350.1,4349.2,41.034]
[1756563723249,0.2967,4349.7,4349.6,0.1874]
[1756563723547,0.2921,4350.2,4350.1,0.1874]
[1756563723747,0.5888,4350.2,4350.1,0.6323]
[1756563723943,0.5888,4350.2,4350.1,0.4214]
[1756563724138,0.5888,4350.2,4349.7,0.1874]
[1756563724139,0.1921,4349.8,4349.7,0.1874]
[1756563724339,0.4888,4349.8,4349.7,0.6323]
[1756563724742,0.1921,4350.1,4350.0,0.1874]
[1756563724946,0.4888,4350.1,4350.0,0.234]
[1756563725643,0.4888,4350.1,4349.4,3.2078]
[1756563725644,0.1921,4350.1,4349.4,3.2078]
[1756563725949,0.4888,4349.5,4349.4,3.6061]
[1756563726147,0.4888,4349.5,4349.4,3.8401]
[1756563726749,0.4888,4349.5,4349.4,3.2078]
[1756563726949,0.4888,4349.5,4349.4,0.234]
[1756563727342,0.4888,4349.5,4349.4,0.4261]
[1756563727850,0.4888,4349.5,4349.4,0.234]
[1756563728045,0.4898,4349.0,4348.9,3.2078]
[1756563728240,0.4898,4349.0,4348.9,3.4418]
[1756563728445,0.4898,4349.0,4348.9,44.6453]
[1756563728950,0.4898,4349.0,4348.9,3.8453]
[1756563729349,0.4898,4349.0,4348.5,0.2114]
[1756563729539,0.2059,4349.0,4348.6,41.034]
[1756563729744,0.2059,4348.7,4348.6,41.0114]
[1756563729940,0.4898,4348.7,4348.6,41.2454]
[1756563731844,0.4898,4348.7,4348.4,3.2078]
[1756563732050,0.4898,4348.6,4348.5,0.234]
[1756563732245,0.2839,4348.5,4348.4,3.2078]
[1756563732451,0.4898,4348.5,4348.4,44.2418]
[1756563733056,0.4898,4348.5,4348.4,3.4418]
[1756563733853,0.4898,4348.5,4348.1,0.2114]
[1756563734055,0.2059,4348.5,4348.4,0.6375]
[1756563734256,0.2059,4348.5,4348.4,0.4261]
[1756563734656,0.4898,4348.5,4348.4,0.4261]
[1756563735658,0.4898,4348.5,4348.4,0.6375]
[1756563737261,3.2078,4349.1,4348.4,0.4261]
[1756563737262,0.2839,4349.0,4348.4,0.4261]
[1756563737459,0.4898,4349.0,4348.4,0.234]
[1756563741966,0.4898,4348.9,4348.8,0.1921]
[1756563742163,0.4898,4348.9,4348.8,0.4261]
[1756563742760,0.4898,4348.9,4348.8,0.234]
[1756563743260,0.2839,4348.9,4348.8,0.6384]
[1756563743455,3.4137,4349.1,4349.0,0.1921]
[1756563743665,3.4137,4349.1,4349.0,0.4044]
[1756563744061,3.6976,4349.1,4349.0,0.4044]
[1756563744464,3.6976,4349.1,4349.0,0.1921]
[1756563744662,3.6976,4349.1,4349.0,0.4044]
[1756563744858,0.4898,4349.1,4349.0,0.4044]
[1756563745970,0.4898,4349.1,4348.8,0.234]
[1756563746471,0.4898,4349.1,4348.9,0.234]
[1756563746770,0.2059,4348.4,4348.3,0.4044]
[1756563746964,0.4898,4348.4,4348.3,0.6384]
[1756563747672,0.2839,4348.4,4348.3,0.6384]
[1756563747866,0.2839,4349.6,4348.4,0.2123]
[1756563748071,0.51384,4349.6,4348.4,0.2123]
[1756563748270,0.22994,4349.5,4348.4,0.2123]
[1756563748461,0.2839,4349.4,4348.4,0.2123]
[1756563750374,0.4898,4348.5,4348.4,0.4044]
[1756563751276,0.4898,4348.5,4348.4,0.6384]
[1756563751769,0.4898,4348.5,4348.2,3.2078]
[1756563751977,0.2059,4347.9,4347.8,0.4044]
[1756563752169,0.4898,4347.9,4347.8,0.6384]
[1756563752370,0.4898,4347.9,4347.8,41.4384]
[1756563752770,0.4898,4347.9,4347.8,41.2044]
[1756563752975,0.4898,4347.9,4347.8,0.6384]
[1756563753370,0.4898,4347.9,4347.8,0.4261]
[1756563754471,0.4898,4347.9,4347.8,0.6384]
[1756563763375,0.4898,4347.9,4347.8,0.4261]
[1756563763978,0.4898,4347.9,4347.8,0.6369]
[1756563766781,3.2078,4348.3,4347.8,0.6369]
[1756563766782,0.2845,4348.2,4347.9,0.2108]
[1756563766970,0.2845,4348.2,4347.7,40.8]
[1756563766971,0.2845,4348.2,4348.1,0.4086]
[1756563767175,0.4914,4348.2,4348.1,0.4086]
[1756563769285,0.4914,4348.2,4348.1,0.1978]
[1756563770674,0.4914,4348.2,4348.1,0.4086]
[1756563770879,0.4914,4347.8,4347.7,40.8]
[1756563771074,0.4914,4347.8,4347.7,41.034]
[1756563771280,0.4914,4347.8,4347.7,41.2448]
[1756563777889,3.6992,4348.3,4348.2,0.4086]
[1756563778094,3.6992,4348.3,4348.2,0.6426]
[1756563780093,3.2078,4348.9,4348.3,0.2108]
[1756563780294,3.6992,4348.9,4348.8,0.4086]
[1756563780488,3.6992,4348.9,4348.8,0.6426]
[1756563780687,3.4147,4348.9,4348.0,2.05363366]
[1756563780996,0.4914,4348.1,4348.0,0.4086]
[1756563781296,3.2078,4348.9,4348.1,0.2108]
[1756563781496,0.2845,4348.8,4348.3,0.2108]
[1756563781796,0.4914,4348.0,4347.7,2.05363366]
[1756563781988,0.4914,4347.9,4347.8,0.234]
[1756563782586,0.4914,4347.9,4347.3,42.85363366]
[1756563782795,3.2078,4348.4,4347.3,42.85363366]
[1756563782796,0.4914,4347.5,4347.4,0.234]
[1756563783391,0.4914,4347.5,4347.4,0.4318]
[1756563783591,0.4914,4347.5,4347.4,0.6426]
[1756563786798,0.4914,4347.5,4347.4,0.234]
[1756563787293,0.5081,4347.2,4347.1,5.66673366]
[1756563787502,0.5081,4347.2,4347.1,3.8471]
[1756563789897,0.3116,4347.5,4347.1,3.8471]
[1756563790098,0.3116,4347.8,4347.2,0.2118]
[1756563790297,0.3116,4347.8,4347.4,0.2118]
[1756563790500,0.5081,4347.6,4347.5,0.6393]
[1756563794601,0.5081,4347.6,4347.5,0.4275]
[1756563795503,0.5081,4347.6,4347.5,0.234]
[1756563796306,0.5081,4347.6,4347.5,0.6393]
[1756563796506,3.2078,4347.9,4347.8,0.1935]
[1756563796705,3.2078,4347.9,4347.8,0.6393]
[1756563797102,3.5194,4347.9,4347.8,0.6393]
[1756563798201,3.2078,4347.9,4347.8,0.6393]
[1756563798604,0.3116,4348.6,4347.9,0.2118]
[1756563798899,0.5081,4348.6,4348.5,0.1935]
[1756563799105,0.5081,4348.6,4348.5,0.6393]
[1756563799296,0.5081,4348.6,4348.5,0.4275]
[1756563799502,0.5081,4348.6,4348.5,0.234]
[1756563800710,0.5081,4348.6,4348.5,0.6393]
[1756563802012,3.2078,4348.7,4348.5,0.6393]
[1756563802311,3.2078,4348.7,4348.6,0.4054]
[1756563802609,0.3116,4348.9,4348.6,0.4054]
[1756563802810,0.3116,4348.9,4348.8,0.1935]
[1756563803004,0.5081,4348.9,4348.8,0.4054]
[1756563804507,0.5081,4348.9,4348.5,0.234]
[1756563804715,0.5081,4348.2,4348.1,0.4054]
[1756563804911,0.5081,4348.2,4348.1,0.6394]
[1756563809817,0.3116,4349.2,4348.2,0.2119]
[1756563810015,0.5081,4349.2,4349.1,0.1935]
[1756563810216,0.5081,4349.2,4349.1,0.6394]
[1756563810620,0.5081,4349.2,4349.1,0.234]
[1756563810910,0.5081,4349.2,4348.8,0.2119]
[1756563810911,0.5081,4348.4,4348.3,0.4054]
[1756563811115,0.5081,4348.4,4348.3,0.4275]
[1756563811521,0.5081,4348.4,4348.3,0.6394]
[1756563812320,0.1965,4348.2,4348.0,3.2078]
[1756563812515,0.5081,4348.1,4348.0,3.6132]
[1756563812715,0.5081,4348.1,4348.0,3.8472]
[1756563818023,0.5081,4348.1,4348.0,0.6394]
[1756563820922,0.4764,4348.7,4348.6,0.4002]
[1756563821117,0.4764,4348.7,4348.6,0.4224]
[1756563821322,0.4764,4348.7,4348.6,0.234]
[1756563821523,0.4764,4348.7,4348.1,0.2118]
[1756563821714,3.2078,4348.8,4347.9,40.8]
[1756563821715,0.2837,4348.6,4347.9,40.8]
[1756563821915,0.4764,4348.3,4348.2,0.234]
[1756563823320,0.1927,4348.3,4347.9,40.8]
[1756563823625,0.1927,4347.4,4347.3,33.125]
[1756563823823,0.4764,4347.4,4347.3,33.359]
[1756563825118,0.4764,4347.4,4347.3,33.5708]
[1756563826427,3.2078,4347.8,4347.7,0.4002]
[1756563826623,3.2078,4347.8,4347.7,0.6342]
[1756563827228,3.6842,4347.8,4347.7,0.6342]
[1756563827926,3.2078,4347.8,4347.7,0.6342]
[1756563828227,3.6842,4347.8,4347.7,0.6342]
[1756563829117,3.2078,4347.8,4347.7,0.6342]
[1756563830123,3.4005,4347.8,4347.7,0.6342]
[1756563830330,3.6842,4347.8,4347.7,0.6342]
[1756563830630,3.6842,4347.8,4347.7,0.4224]
[1756563830821,3.6842,4347.8,4347.7,0.234]
[1756563831622,3.6842,4347.8,4347.3,33.125]
[1756563831827,0.2837,4347.7,4347.3,33.125]
[1756563832123,3.4005,4347.8,4347.3,33.125]
[1756563832124,0.4764,4347.4,4347.3,33.125]
[1756563832329,0.4764,4347.4,4347.3,33.359]
[1756563832530,0.4764,4347.4,4347.3,33.5708]
[1756563833524,0.4764,4347.4,4347.3,33.125]
[1756563833730,0.4764,4347.4,4347.3,33.359]
[1756563834430,0.4764,4347.4,4347.3,33.5708]
[1756563835236,0.4764,4347.4,4347.3,33.359]
[1756563836928,0.4764,4347.4,4347.3,33.5708]
[1756563837935,3.2078,4348.1,4347.4,0.2118]
[1756563838130,0.4764,4347.6,4347.5,0.6342]
[1756563842139,3.2078,4348.1,4347.9,0.1884]
[1756563842340,0.4764,4348.0,4347.9,0.4002]
[1756563842541,0.4764,4348.0,4347.9,0.6342]
[1756563842939,0.2837,4348.0,4347.9,0.6342]
[1756563843940,0.4764,4348.5,4348.4,0.4002]
[1756563844241,3.2078,4348.6,4348.4,0.4224]
[1756563844449,0.2837,4349.5,4348.6,0.2118]
[1756563844642,0.4764,4349.5,4349.4,0.1884]
[1756563844847,0.4764,4349.5,4349.4,0.5472]
[1756563850357,3.2078,4349.6,4349.5,0.2108]
[1756563850559,0.2958,4349.8,4349.5,0.4009]
[1756563850759,0.4896,4349.8,4349.7,0.1901]
[1756563851052,0.4896,4349.8,4349.7,0.6349]
[1756563851252,0.2958,4350.0,4349.9,0.1901]
[1756563851450,0.2958,4350.0,4349.9,0.6349]
[1756563851651,0.4896,4350.0,4349.9,0.6349]
[1756563853852,3.2078,4350.6,4349.9,0.6349]
[1756563854057,0.3958,4350.2,4349.9,0.4241]
[1756563854252,0.1,4350.2,4350.1,0.4009]
[1756563854858,0.1,4350.2,4350.1,41.2009]
[1756563857560,0.1,4350.2,4350.1,41.43078]
[1756563857761,0.1,4350.2,4350.1,41.2009]
[1756563858060,0.3958,4350.2,4350.1,41.4349]
[1756563858652,0.1,4350.2,4350.1,41.4349]
[1756563859657,0.2958,4351.0,4350.1,45.45398]
[1756563859859,0.2958,4351.0,4350.9,0.1772]
[1756563860062,0.4896,4351.0,4350.9,0.234]
[1756563860262,0.4896,4351.0,4350.9,0.4112]
[1756563860464,0.4896,4351.0,4350.9,0.5225]
[1756563861062,0.4896,4350.9,4350.8,0.1781]
[1756563861265,0.4896,4350.9,4350.8,0.5234]
[1756563862963,0.4896,4350.9,4350.1,40.8]
[1756563863268,0.2958,4350.8,4350.2,0.234]
[1756563864266,0.2958,4350.8,4350.3,0.1113]
[1756563864467,0.2958,4350.8,4350.2,0.234]
[1756563865071,0.2958,4350.8,4350.3,0.1113]
[1756563865573,0.4896,4350.8,4350.7,0.2894]
[1756563865766,0.4896,4350.8,4350.7,0.5234]
[1756563867069,3.2078,4351.7,4350.7,0.4121]
[1756563867375,0.2958,4351.6,4350.8,0.1113]
[1756563870980,0.4896,4350.9,4350.8,0.2894]
[1756563871672,0.4896,4350.9,4350.8,0.5234]
[1756563873174,0.2958,4350.9,4350.8,0.5234]
[1756563873375,0.2958,4352.1,4350.9,0.1113]
[1756563873576,0.52561,4352.1,4350.9,0.1113]
[1756563873776,0.2958,4352.1,4350.9,0.1113]
[1756563876682,0.4896,4351.0,4350.9,0.2894]
[1756563878384,0.4896,4351.0,4350.9,0.234]
[1756563878587,0.4896,4351.0,4350.7,3.2078]
[1756563878880,0.2832,4352.1,4351.0,0.1104]
[1756563879092,0.2832,4352.0,4351.3,0.1104]
[1756563879380,0.4737,4351.5,4351.4,0.5211]
[1756563881987,3.2078,4352.2,4351.5,0.1104]
[1756563882188,0.4737,4351.6,4351.5,0.2871]
[1756563888690,0.2832,4351.6,4351.5,0.2871]
[1756563888886,0.2832,4352.6,4351.5,0.1767]
[1756563889090,3.2078,4352.7,4351.8,3.2078]
[1756563889296,0.4737,4352.0,4351.9,0.233]
[1756563890387,0.4737,4352.0,4351.9,0.5201]
[1756563891993,0.2832,4352.6,4352.0,0.1104]
[1756563892295,0.4737,4352.6,4352.1,0.233]
[1756563892491,0.4737,4352.6,4351.8,44.0078]
[1756563892696,0.4737,4352.0,4351.8,44.0078]
[1756563892889,0.2832,4351.9,4351.8,44.0078]
[1756563893090,0.2832,4351.9,4351.8,44.3512]
[1756563895293,0.4737,4352.6,4352.5,0.1767]
[1756563895593,0.4737,4352.6,4352.5,0.5201]
[1756563895997,0.4737,4352.6,4352.5,0.4097]
[1756563896199,0.4737,4352.6,4352.5,0.233]
[1756563896489,0.4737,4352.6,4352.5,0.5201]
[1756563897293,0.4737,4352.6,4352.5,0.4097]
[1756563897493,0.4737,4352.6,4352.5,0.5201]
[1756563899801,0.1905,4352.6,4352.1,33.097]
[1756563900099,0.4737,4352.6,4352.5,0.233]
[1756563900294,3.2078,4353.9,4352.4,3.2078]
[1756563900496,0.4737,4352.5,4352.4,3.2078]
[1756563900696,0.4737,4352.5,4352.4,44.5279]
[1756563901896,3.2078,4353.4,4352.4,44.5279]
[1756563902103,0.1905,4352.6,4352.5,0.2871]
[1756563902404,0.4737,4352.6,4352.5,0.5211]
[1756563904201,0.2832,4352.9,4352.5,0.5211]
[1756563904397,0.2832,4353.3,4352.6,0.1104]
[1756563904606,0.4737,4353.3,4353.2,0.1767]
[1756563904806,0.4737,4353.3,4353.2,0.5211]
[1756563905608,0.4737,4353.3,4353.2,0.4107]
[1756563906109,0.4737,4353.3,4353.2,0.234]
[1756563906499,0.4737,4353.3,4352.9,0.1104]
[1756563906704,0.4737,4353.3,4353.0,0.234]
[1756563907810,0.4737,4353.3,4352.4,44.0078]
[1756563907811,0.3001,4352.5,4352.4,44.0078]
[1756563908012,0.3001,4352.5,4352.4,44.2418]
[1756563909005,0.5062,4352.5,4352.4,3.4418]
[1756563911419,0.5062,4352.5,4352.4,3.2078]
[1756563911617,0.5062,4352.5,4352.2,40.8]
[1756563911918,0.5062,4352.4,4352.3,0.234]
[1756563912313,0.5062,4352.2,4352.1,33.097]
[1756563912519,0.5062,4352.2,4352.1,33.331]
[1756563913615,4.5062,4352.2,4352.1,0.234]
[1756563914016,4.22977,4352.2,4352.1,0.234]
[1756563914212,4.43587,4352.2,4352.1,0.234]
[1756563914614,4.73597,4352.2,4352.1,0.234]
[1756563914814,4.5062,4352.2,4352.1,0.234]
[1756563915222,0.3001,4352.1,4351.1,40.8]
[1756563915415,0.5062,4351.0,4350.9,3.2078]
[1756563915615,0.5062,4351.0,4350.9,3.4418]
[1756563916323,0.5062,4351.0,4350.9,3.2078]
[1756563916515,0.5062,4351.0,4350.9,3.4418]
[1756563916715,0.5062,4351.0,4350.9,0.234]
[1756563917018,0.5062,4350.8,4350.7,33.092]
[1756563917212,0.5062,4350.8,4350.7,33.326]
[1756563917417,3.2078,4352.0,4350.8,0.2853]
[1756563917619,0.5062,4351.6,4351.5,0.4926]
[1756563917819,0.5062,4351.6,4351.5,0.7266]
[1756563920921,0.3001,4351.9,4351.5,0.4413]
[1756563921113,0.5062,4352.4,4352.3,0.4926]
[1756563921313,0.5062,4352.4,4352.3,0.7266]
[1756563922026,3.2078,4352.5,4352.3,0.4413]
[1756563922222,3.2078,4352.5,4352.4,0.2853]
[1756563922419,3.2078,4352.5,4352.4,0.4926]
[1756563922621,3.714,4352.5,4352.1,0.2853]
[1756563922822,3.714,4352.5,4352.2,0.234]
[1756563923015,0.2061,4352.4,4352.3,0.2853]
[1756563923219,0.5062,4352.4,4352.3,0.4926]
[1756563924624,0.3001,4352.3,4352.0,0.2853]
[1756563924925,0.5062,4352.1,4352.0,0.4926]
[1756563925126,0.5062,4352.1,4352.0,0.7266]
[1756563925322,0.5062,4352.1,4351.7,40.8]
[1756563925323,0.3001,4352.0,4351.3,3.4931]
[1756563925527,0.5062,4351.4,4351.3,3.7004]
[1756563925821,3.2078,4352.7,4351.4,0.2853]
[1756563925822,0.3001,4352.5,4351.4,0.2853]
[1756563926321,0.2061,4351.9,4351.8,3.4151]
[1756563926519,0.5062,4351.9,4351.8,3.6491]
[1756563926726,0.5062,4351.9,4351.8,0.4413]